Cogmind - Beta 12 @@@ ROGUE MODE // 2023.03.07 @ 02:11:25 Player: Delta Epsilon Result: Self-destructed Performance ------------- Evolutions (3) 1500 Regions Visited (8) 1600 Robots Destroyed (90) 450 Value Destroyed (3581) 3581 Prototype IDs (29) 580 Alien Tech Used (0) 0 Bonus (2160) 2160 TOTAL SCORE: 9871 Bonus ------- High Alert Combat Kills 735 Follower Combat Kills 208 Entered Garrisons 200 Used RIF Installer 1000 Aligned with FarCom 300 Friendly Fire -283 Cogmind --------- Core Integrity 585/700 Matter 89/300 Energy 20/290 System Corruption 3% Temperature Critical (524) Movement Treading (243) Ox1 Location -7/Storage Parts ------- > --- POWER (1) -------- Improved Deuterium Engine > --- PROPULSION (4) --- Light Treads Light Treads Light Treads Armored Treads > --- UTILITY (6) ------ High-capacity Storage Unit Hardened Heavy Armor Plating Improved Shield Generator Advanced System Shield Relay Coupler [NC] (11) > --- WEAPON (2) ------- (None) > --- INVENTORY (20) --- Improved Heat Sink High-capacity Battery (0) Hardened Heavy Armor Plating Hardlight Generator Relay Coupler [NC] (23) Relay Coupler [Swarmer] (41) Improved Field Recycling Unit (0) PSU Rigger Long-range Proton Cannon Long-range Proton Cannon Heavy Phase Cannon Enhanced Autogun Hypervelocity Coil Gun Heavy Shock Bomb Launcher Grenade Launcher Rocket Launcher Remote Datajack Heavy Mace Peak State ------------ > --- POWER ------------ Improved Deuterium Engine > --- PROPULSION ------- Light Treads Light Treads Armored Treads Armored Treads > --- UTILITY ---------- High-capacity Storage Unit Hardened Heavy Armor Plating Improved Shield Generator Advanced System Shield Relay Coupler [NC] > --- WEAPON ----------- Hypervelocity Coil Gun Hypervelocity Coil Gun > --- INVENTORY -------- Improved Heat Sink Large Battery Hardened Heavy Armor Plating Hardened Heavy Armor Plating Hardlight Generator Relay Coupler [NC] Relay Coupler [Swarmer] Improved Field Recycling Unit PSU Rigger Long-range Proton Cannon Long-range Proton Cannon Heavy Phase Cannon Enhanced Autogun Heavy Shock Bomb Launcher Grenade Launcher Rocket Launcher Remote Datajack Heavy Mace [Rating: 51] Favorites ----------- Power Light Nuclear Core Engine Cooled Ion Engine Power Core Light Nuclear Core Propulsion Armored Treads Treads Armored Treads Wheel Armored Wheel Utility High-capacity Storage Unit Device Improved Heat Sink Storage High-capacity Storage Unit Hackware Relay Coupler [NC] Protection Hardened Heavy Armor Plating Weapon Light Assault Rifle Energy Gun Field Laser Energy Cannon Heavy Particle Cannon Ballistic Gun Light Assault Rifle Launcher Grenade Launcher Special Weapon Remote Datajack Impact Weapon Heavy Hammer Build | -11 -10 -10 -10 -9 -8 -8 -7 -7 ------- Run | Jun Mat Min Exi Min Mat Gar Fac Sto Slots Evolved 6 | . . . . . 4 . 2 . Power . | . . . . . . . . . Propulsion 2 | . . . . . 2 . . . Utility 4 | . . . . . 2 . 2 . Weapon . | . . . . . . . . . Parts Attached 123 | 6 4 . . 4 40 42 11 16 Power 8 | 1 . . . . 3 3 . 1 Engine 3 | 1 . . . . 1 . . 1 Core 5 | . . . . . 2 3 . . Reactor . | . . . . . . . . . Propulsion 17 | 2 . . . . 9 2 . 4 Treads 16 | 2 . . . . 8 2 . 4 Leg . | . . . . . . . . . Wheel 1 | . . . . . 1 . . . Hover . | . . . . . . . . . Flight . | . . . . . . . . . Utility 21 | 1 2 . . . 4 10 1 3 Device 12 | . 1 . . . 3 7 . 1 Storage 2 | 1 1 . . . . . . . Processor . | . . . . . . . . . Hackware 3 | . . . . . . 1 1 1 Protection 4 | . . . . . 1 2 . 1 Artifact . | . . . . . . . . . Weapon 77 | 2 2 . . 4 24 27 10 8 Energy Gun 11 | . . . . . 11 . . . Energy Cannon 9 | . . . . . 2 5 . 2 Ballistic Gun 33 | 2 1 . . 2 6 14 5 3 Ballistic Cannon . | . . . . . . . . . Launcher 10 | . 1 . . 2 5 2 . . Special Weapon 5 | . . . . . . 1 4 . Impact Weapon 9 | . . . . . . 5 1 3 Slashing Weapon . | . . . . . . . . . Piercing Weapon . | . . . . . . . . . Special Melee Weapon . | . . . . . . . . . Unidentified Prototypes 4 | . . . . . 4 . . . Parts Lost 14 | . . . . . 9 2 1 2 Power 2 | . . . . . . 1 1 . Propulsion 4 | . . . . . 3 1 . . Utility 3 | . . . . . 2 . . 1 Weapon 5 | . . . . . 4 . . 1 Highest Loss Streak 3 | . . . . . 3 1 1 1 To Critical Strikes 2 | . . . . . 1 1 . . Average Slot Usage (%) 88 | . 91 100 100 99 77 92 83 88 Engine 6 | . 14 14 14 14 5 3 . 4 Core 3 | . . . . . 3 5 6 . Treads 30 | . 28 28 28 28 27 35 30 30 Device 10 | . 6 14 14 14 8 11 7 7 Storage 9 | . 14 14 14 14 9 9 7 7 Hackware 1 | . . . . . . . 7 14 Protection 5 | . . . . . 4 9 7 7 Energy Gun 3 | . . . . . 10 . . . Energy Cannon 1 | . . . . . 2 2 . . Ballistic Gun 13 | . 27 28 28 27 3 14 12 10 Naked Turns . | . . . . . . . . . Heaviest Build 92 | 10 47 46 46 46 66 85 85 92 Greatest Support 80 | 40 40 40 40 40 80 80 80 80 Greatest Overweight (x) 17 | . 1 1 1 1 17 1 1 1 Average Overweight (x) . | . . 1 1 1 . . . . Largest Inventory Capacity 20 | 8 20 20 20 20 20 20 20 20 Average Capacity 19 | 7 18 20 20 20 20 20 20 20 Most Carried 20 | 2 6 7 8 9 20 20 20 20 Average Carried 14 | 1 4 6 7 8 12 19 18 19 Final Capacity 20 | 8 20 20 20 20 20 20 20 20 Final Carried 20 | 2 6 7 8 8 19 18 20 19 Class Distribution -------------------- 94% | Mutant 4% | Scavenger-Mutant Dominant Class ---------------- Mutant | -10/Materials Mutant | -10/Mines Mutant | -10/Exiles Mutant | -9/Mines Mutant | -8/Materials Mutant | -8/Garrison Mutant | -7/Factory Scavenger-Mutant | -7/Storage Resources | -11 -10 -10 -10 -9 -8 -8 -7 -7 ----------- Run | Jun Mat Min Exi Min Mat Gar Fac Sto Matter Collected 2645 | 219 141 . . 90 496 1015 297 387 Remotely . | . . . . . . . . . Salvage Created 3852 | . 423 . . 72 1378 1121 432 426 Parts 217 | . 20 . . 6 78 60 27 26 Haulers Intercepted 6 | . 1 . . . 5 . . . Recyclers Shooed 5 | . 1 . . . 2 . 1 1 Parts Field Recycled . | . . . . . . . . . Retrieved Matter . | . . . . . . . . . Parts Self-Destructed . | . . . . . . . . . Prevented . | . . . . . . . . . Kills | -11 -10 -10 -10 -9 -8 -8 -7 -7 ------- Run | Jun Mat Min Exi Min Mat Gar Fac Sto Combat Hostiles Destroyed 70 | . 2 . . 7 23 26 6 6 Guns 46 | . . . . 1 13 21 6 5 Cannons 4 | . . . . . . 3 . 1 AOE 19 | . 2 . . 6 9 2 . . Classes Destroyed 15 | . 4 . . 3 5 3 . . Builder 2 | . . . . . 1 . . 1 Tunneler 1 | . 1 . . . . . . . Hauler 6 | . 1 . . . 5 . . . Recycler 9 | . 4 . . . 4 . 1 . Mechanic 1 | . . . . . 1 . . . Watcher 3 | . . . . . 2 1 . . Swarmer 15 | . . . . 3 7 5 . . Cutter 3 | . . . . . . 3 . . Grunt 24 | . 2 . . . 9 9 3 1 Duelist 1 | . . . . . 1 . . . Sentry 16 | . . . . . 6 5 1 4 Specialist 1 | . . . . . . 1 . . Hunter 3 | . . . . . . 1 2 . Programmer 3 | . . . . . . 2 . 1 Assembled 4 | . . . . 4 . . . . Butcher 1 | . . . . . . 1 . . Guerrilla 1 | . . . . 1 . . . . Best Kill Streak 5 | . 3 . . 4 5 4 4 2 Combat Bots Only 5 | . 2 . . 4 5 4 4 2 Max Kills in Single Turn 4 | . 2 . . 4 3 2 1 1 Gunslinging 1 | . . . . . . 1 . . Exploded 3 | . 2 . . 3 3 2 . . Melee . | . . . . . . . . . Uniques/NPCs Destroyed . | . . . . . . . . . Combat | -11 -10 -10 -10 -9 -8 -8 -7 -7 -------- Run | Jun Mat Min Exi Min Mat Gar Fac Sto Damage Taken 5086 | . 50 . . 166 1407 1878 765 820 Core 452 | . 15 . . 56 217 49 48 67 Absorbed by Shields 931 | . . . . . 244 340 85 262 Core Remaining (%) 74 | 100 . . . 71 . 51 . . Volleys Fired 316 | . 24 . . 7 99 116 32 38 Largest 2 | . 2 . . 2 2 2 2 2 Hottest 162 | . 40 . . 40 150 150 70 162 Shots Fired 561 | . 42 . . 10 181 204 54 70 Gun 463 | . 40 . . 6 157 156 44 60 Cannon 69 | . . . . . 14 45 . 10 Launcher 18 | . 2 . . 4 10 2 . . Special 11 | . . . . . . 1 10 . Kinetic 356 | . 40 . . 6 50 156 44 60 Thermal 166 | . . . . . 121 45 . . Explosive 18 | . 2 . . 4 10 2 . . Electromagnetic 10 | . . . . . . . . 10 Robot Hit Streak 18 | . 5 . . 3 15 18 6 13 Robot Miss Streak 4 | . 2 . . 2 4 3 2 3 Penetration Max 2 | . . . . . . . 1 2 Secondary Targets 7 | . . . . . 2 4 . 1 Max Gunslinging Chain 1 | . . . . . 1 1 . 1 Shots Hit Robots 373 | . 26 . . 6 127 122 35 57 Core Hits 182 | . 15 . . 12 69 48 18 20 Critical Kills 9 | . . . . . . . 6 3 Critical Parts Destroyed 13 | . . . . . 1 . 7 5 Critical Strikes 28 | . . . . . 7 . 13 8 Burn 6 | . . . . . 6 . . . Destroy 21 | . . . . . 1 . 12 8 Smash 1 | . . . . . . . 1 . Melee Attacks 21 | . . . . . . 16 1 4 Impact 21 | . . . . . . 16 1 4 Slashing . | . . . . . . . . . Piercing . | . . . . . . . . . Sneak Attacks 3 | . . . . . . 1 1 1 Combat Hostiles . | . . . . . . . . . Follow-up Attacks . | . . . . . . . . . Damage Inflicted 7163 | . 331 . . 439 2704 2340 383 966 Guns 4334 | . 207 . . 24 1483 1768 258 594 Cannons 797 | . . . . . 250 343 . 204 Explosions 1698 | . 124 . . 415 953 116 . 90 Melee 293 | . . . . . . 113 102 78 Ramming 41 | . . . . . 18 . 23 . Kinetic 3130 | . 207 . . 24 279 1768 258 594 Thermal 1845 | . . . . . 1454 343 . 48 Explosive 1650 | . 124 . . 415 953 116 . 42 Electromagnetic 204 | . . . . . . . . 204 Impact 293 | . . . . . . 113 102 78 Slashing . | . . . . . . . . . Piercing . | . . . . . . . . . Highest Corruption 3 | . . . . . . 3 . 3 Average Corruption 2 | . . . . . . 2 . 2 Corruption Purged . | . . . . . . . . . Corruption Blocked . | . . . . . . . . . Effects 23 | . . . . . . 21 . 2 Message Errors 5 | . . . . . . 5 . . Matter Fused 4 | . . . . . . 2 . 2 Heat Flow Errors 1 | . . . . . . 1 . . Energy Discharges 3 | . . . . . . 3 . . Data Loss (minor) 5 | . . . . . . 5 . . Data Loss (major) 1 | . . . . . . 1 . . Misfires 2 | . . . . . . 2 . . Alerts 1 | . . . . . . 1 . . Weapon Failures 1 | . . . . . . 1 . . Overload Shots . | . . . . . . . . . Overflow Damage 121 | . . . . . 4 79 . 38 Projectiles 1 | . . . . . . 1 . . Explosions 4 | . . . . . 4 . . . Melee 116 | . . . . . . 78 . 38 Knockbacks 1 | . . . . . 1 . . . Impact 1 | . . . . . 1 . . . Kinetic . | . . . . . . . . . Secondary . | . . . . . . . . . Self-Inflicted Damage 241 | . . . . 45 46 60 . 90 Shots 7 | . . . . 1 2 2 . 2 Rammed 9 | . . . . . 5 1 3 . Targets Rammed 9 | . . . . . 5 1 3 . Kicked . | . . . . . . . . . Crushed . | . . . . . . . . . Highest Temperature 529 | . 4 . . . 163 246 375 529 Average Temperature 88 | . 4 . . . 30 91 154 109 Received Heat Transfer 1263 | . 30 . . . 532 321 210 170 Effects 4 | . . . . . . 2 . 2 Energy Bleed 2 | . . . . . . 2 . . Short Circuit 1 | . . . . . . . . 1 Damage (minor) 1 | . . . . . . . . 1 Siege Activations . | . . . . . . . . . Robots Corrupted . | . . . . . . . . . Combat Hostiles . | . . . . . . . . . Parts Fried 3 | . . . . . . 1 . 2 Impact Corruptions 3 | . . . . . . 1 . 2 Robots Melted 1 | . . . . . 1 . . . Combat Hostiles 1 | . . . . . 1 . . . Parts Melted 8 | . . . . . 8 . . . Heat Transferred 4229 | . . . . . 3700 479 . 50 Parts Sabotaged . | . . . . . . . . . Parts Stolen . | . . . . . . . . . Parts Stripped . | . . . . . . . . . Power Chain Reactions 1 | . . . . . . . . 1 Missiles Intercepted . | . . . . . . . . . Alert | -11 -10 -10 -10 -9 -8 -8 -7 -7 ------- Run | Jun Mat Min Exi Min Mat Gar Fac Sto Peak Influence 2045 | . 97 18 . 121 339 2045 1261 719 Initial 1073 | . . 11 . . 46 137 1073 477 Average 555 | . 27 16 . 116 217 933 1148 592 Maximum Alert Level 5 | . . . . . 1 5 4 3 Low Security (%) 28 | 100 100 100 . 100 29 6 . . Level 1 27 | . . . . . 70 14 . . Level 2 14 | . . . . . . 23 . 89 Level 3 11 | . . . . . . 21 36 10 Level 4 10 | . . . . . . 15 63 . Level 5 7 | . . . . . . 19 . . High Security . | . . . . . . . . . Max Security . | . . . . . . . . . Squads Dispatched 9 | . 1 . . . 2 . 4 2 Investigation . | . . . . . . . . . Extermination 2 | . . . . . . . 1 1 Reinforcement 5 | . 1 . . . 2 . 2 . Assault 2 | . . . . . . . 1 1 Garrison . | . . . . . . . . . Intercept . | . . . . . . . . . Searches Triggered . | . . . . . . . . . Construction Impeded 1 | . . . . . 1 . . . Haulers Reinforced . | . . . . . . . . . Active Scanning Responses . | . . . . . . . . . Cargo Convoy Interrupts . | . . . . . . . . . Stealth | -11 -10 -10 -10 -9 -8 -8 -7 -7 --------- Run | Jun Mat Min Exi Min Mat Gar Fac Sto Distress Signals 1 | . . . . . . . 1 . Communications Jammed . | . . . . . . . . . Distress Signals . | . . . . . . . . . Times Spotted 103 | . 3 . . 8 34 36 14 8 Peak Tracking Total 6 | . 2 . . 5 4 6 6 3 Tactical Retreats 2 | . . . . . . 2 . . Traps | -11 -10 -10 -10 -9 -8 -8 -7 -7 ------- Run | Jun Mat Min Exi Min Mat Gar Fac Sto Traps Triggered 1 | . . . . . . 1 . . Indirectly . | . . . . . . . . . Trap Hack Attempts . | . . . . . . . . . Triggered . | . . . . . . . . . Disarmed . | . . . . . . . . . Reprogrammed . | . . . . . . . . . Reused . | . . . . . . . . . Traps Extracted . | . . . . . . . . . Installed . | . . . . . . . . . Triggered . | . . . . . . . . . Power Sources Rigged 3 | . . . . . . 3 . . Exploded 2 | . . . . . . 2 . . Machines | -11 -10 -10 -10 -9 -8 -8 -7 -7 ---------- Run | Jun Mat Min Exi Min Mat Gar Fac Sto Machines Disabled 13 | . 1 . . 1 . 5 . 6 Max in Single Turn 2 | . 1 . . 1 . 1 . 2 Garrison Relay 4 | . . . . . . 4 . . Machines Repaired . | . . . . . . . . . Machines Sabotaged . | . . . . . . . . . Overloaded Fab Kills . | . . . . . . . . . Hacking | -11 -10 -10 -10 -9 -8 -8 -7 -7 --------- Run | Jun Mat Min Exi Min Mat Gar Fac Sto Machines Accessed 17 | . 2 1 2 . 5 3 1 3 Terminals 12 | . 1 1 . . 4 3 . 3 Fabricators . | . . . . . . . . . Repair Stations 1 | . . . . . . . 1 . Recycling Units 1 | . 1 . . . . . . . Scanalyzers . | . . . . . . . . . Garrison Access 1 | . . . . . 1 . . . Total Hacks 38 | . 5 3 2 . 11 5 2 10 Successful 17 | . 2 2 2 . 4 2 1 4 Failed 21 | . 3 1 . . 7 3 1 6 Catastrophic 8 | . 2 1 . . 2 2 . 1 Database Lockouts . | . . . . . . . . . Manual 7 | . . . 1 . 5 . . 1 Terminals 29 | . 1 3 . . 10 5 . 10 Fabricators . | . . . . . . . . . Repair Stations 2 | . . . . . . . 2 . Recycling Units 4 | . 4 . . . . . . . Scanalyzers . | . . . . . . . . . Garrison Access 1 | . . . . . 1 . . . Terminal Hacks 12 | . . 2 2 . 2 2 . 4 Record 1 | . . . 1 . . . . . Robot Analysis 1 | . . . . . 1 . . . Prototype ID Bank 1 | . . . . . 1 . . . Open Door 1 | . . . . . . . . 1 Emergency Access Points 1 | . . . . . . 1 . . Alert Level 1 | . . . . . . . . 1 Assault Status 1 | . . 1 . . . . . . Hauler Manifests 1 | . . . . . . . . 1 Registered Components 1 | . . . . . . . . 1 Zone Layout 1 | . . 1 . . . . . . Patrol Navigation 1 | . . . . . . 1 . . EX-Prototype ID Bank 1 | . . . 1 . . . . . Fabricator Hacks . | . . . . . . . . . Repair Station Hacks 1 | . . . . . . . 1 . Scan Component 1 | . . . . . . . 1 . Recycling Unit Hacks 2 | . 2 . . . . . . . Retrieve Components 2 | . 2 . . . . . . . Scanalyzer . | . . . . . . . . . Garrison Access Hacks 1 | . . . . . 1 . . . Unlock Access 1 | . . . . . 1 . . . Unauthorized Hacks 1 | . . . . . 1 . . . Terminals 1 | . . . . . 1 . . . Assimilate 1 | . . . . . 1 . . . Fabricators . | . . . . . . . . . Repair Stations . | . . . . . . . . . Recycling Units . | . . . . . . . . . Scanalyzers . | . . . . . . . . . Garrison Access . | . . . . . . . . . Data Cores Recovered . | . . . . . . . . . Used . | . . . . . . . . . Hacking Detections 11 | . 2 . . . 4 2 1 2 Full Trace Events 3 | . 1 . . . . 2 . . Feedback Events . | . . . . . . . . . Feedback Blocked . | . . . . . . . . . Robot Schematics Acquired . | . . . . . . . . . Robots Built . | . . . . . . . . . Authchips . | . . . . . . . . . Time . | . . . . . . . . . Total Robot Build Rating . | . . . . . . . . . Part Schematics Acquired . | . . . . . . . . . Parts Built . | . . . . . . . . . Authchips . | . . . . . . . . . Time . | . . . . . . . . . Total Part Build Rating . | . . . . . . . . . Parts Repaired . | . . . . . . . . . Time . | . . . . . . . . . Parts Recycled . | . . . . . . . . . Recycled Matter . | . . . . . . . . . Retrieved Matter . | . . . . . . . . . Retrieved Components 11 | . 11 . . . . . . . Parts Scanalyzed . | . . . . . . . . . Part Schematics Acquired . | . . . . . . . . . Parts Damaged . | . . . . . . . . . Bothacking | -11 -10 -10 -10 -9 -8 -8 -7 -7 ------------ Run | Jun Mat Min Exi Min Mat Gar Fac Sto Used RIF Installer 2 | . . . . . . 2 . . Patrol Navigation 1 | . . . . . . 1 . . Robots Hacked 5 | . . . . . . 1 4 . Non-combat 4 | . . . . . . . 4 . Combat 1 | . . . . . . 1 . . Robot Hacks Applied 6 | . . . . . . 1 5 . parse_system 1 | . . . . . . . 1 . deconstruct_machine 1 | . . . . . . . 1 . find_recycling 1 | . . . . . . . 1 . amplify_resonance 1 | . . . . . . 1 . . formatsys_low 2 | . . . . . . . 2 . Relay Couplers Released 13 | . . . . . . 13 . . Machine Destruction 13 | . . . . . . 13 . . Attached 2 | . . . . . . 1 1 . Fabnet Peak Effective % . | . . . . . . . . . Robots Rewired . | . . . . . . . . . Allies Hacked . | . . . . . . . . . Hacks Repelled . | . . . . . . . . . Allies | -11 -10 -10 -10 -9 -8 -8 -7 -7 -------- Run | Jun Mat Min Exi Min Mat Gar Fac Sto Total Allies 5 | . . . . . 1 2 2 . Largest Group 2 | . . . . . 1 2 1 . Highest-Rated Group 56 | . . . . . 10 56 10 . Highest-Rated Ally 31 | . . . . . 10 31 10 . Total Orders 15 | . . . . . 4 9 2 . STAY 8 | . . . . . 2 5 1 . FOLLOW 7 | . . . . . 2 4 1 . Ally Attacks 25 | . . . . . . 25 . . Total Damage 528 | . . . . . . 528 . . Kills 6 | . . . . . . 6 . . Allies Corrupted . | . . . . . . . . . Allies Melted . | . . . . . . . . . Intel | -11 -10 -10 -10 -9 -8 -8 -7 -7 ------- Run | Jun Mat Min Exi Min Mat Gar Fac Sto Robot Analysis Total 1 | . . . . . 1 . . . Derelict Logs Recovered 1 | . . 1 . . . . . . Drone Launches . | . . . . . . . . . Drone Recoveries . | . . . . . . . . . Exploration | -11 -10 -10 -10 -9 -8 -8 -7 -7 ------------- Run | Jun Mat Min Exi Min Mat Gar Fac Sto Turns Passed 7733 | 92 526 251 536 338 2237 2723 546 484 Spaces Moved 3265 | 53 206 103 223 115 980 1244 169 172 Core 8 | 4 . . . . 4 . . . Treads 3127 | 49 206 103 223 115 846 1244 169 172 Legs . | . . . . . . . . . Wheels 130 | . . . . . 130 . . . Hover . | . . . . . . . . . Flight . | . . . . . . . . . Fastest Speed 50 | 50 160 240 240 240 135 167 165 162 Average Speed 191 | 151 219 240 240 240 175 178 243 188 Slowest Speed 900 | 160 240 240 240 240 900 250 245 245 Overloaded Moves . | . . . . . . . . . Propulsion Burnouts . | . . . . . . . . . Robots Hopped . | . . . . . . . . . Cave-ins Triggered . | . . . . . . . . . Exploration Rate (%) 36 | 4 35 22 60 34 48 87 5 30 Regions Visited 8 Branch Regions 4 Pre-discovered Areas 2 | . . 1 1 . . . . . Known Exits Taken 1 | . . . . . 1 . . . Unknown Exits Taken 6 | 1 1 1 1 1 . . 1 . Scrap Searched . | . . . . . . . . . Spaces Dug 1 | . . . . . . . . 1 Terrain Destroyed 141 | . . . . 45 61 5 5 25 Melee 1 | . . . . . . . . 1 Projectile 3 | . . . . . 3 . . . AOE 129 | . . . . 45 58 5 . 21 Terrain Rammed . | . . . . . . . . . Walls Destroyed . | . . . . . . . . . Machines Disabled . | . . . . . . . . . Actions | -11 -10 -10 -10 -9 -8 -8 -7 -7 --------- Run | Jun Mat Min Exi Min Mat Gar Fac Sto Total 4196 | 62 245 108 225 168 1311 1568 247 262 Wait 355 | 2 6 5 2 42 152 99 26 21 Move 3257 | 52 205 102 222 114 979 1243 168 172 Hop . | . . . . . . . . . Pick Up 57 | 2 5 1 1 . 22 19 4 3 Fast Attach 26 | 6 1 . . . 11 5 1 2 Attach 13 | . . . . 1 4 3 1 4 Detach 8 | . . . . 1 1 4 . 2 Swap 84 | . 3 . . 3 25 34 9 10 Drop 47 | . 1 . . . 13 25 2 6 Fire 316 | . 24 . . 7 99 116 32 38 Melee 21 | . . . . . . 16 1 4 Ram . | . . . . . . . . . Kick . | . . . . . . . . . Crush 9 | . . . . . 5 1 3 . Escape Stasis . | . . . . . . . . . Rewire . | . . . . . . . . . Trap 3 | . . . . . . 3 . . Miscellaneous . | . . . . . . . . . Route ------- -11/Junkyard -10/Materials -10/Mines (discovered 2 exits: [*Mat] / *Exi) -10/Exiles -9/Mines (discovered 2 exits: *Mat x2) -8/Materials (discovered 2 exits: *Fac / Gar) -8/Garrison (discovered 3 exits: *Fac x3) -7/Factory -7/Storage History --------- Turn | Location | Event 5 | -11/Junkyard | Discovered new exit (range 16) 93 | -11/Junkyard | Entered Materials 303 | -10/Materials | Discovered new exit (range 6) 315 | -10/Materials | Build established: Mutant 619 | -10/Materials | Entered Mines 626 | -10/Mines | Received a Rocket Launcher from a helpful Derelict 647 | -10/Mines | Learned location of Mines (-9) 738 | -10/Mines | Found a hidden stash of uninstalled traps 825 | -10/Mines | Discovered new exit (range 7) 858 | -10/Mines | Deemed a non-threat by the Exiles lab entrance 861 | -10/Mines | Discovered new exit (range 5) 870 | -10/Mines | Entered Exiles 930 | -10/Exiles | Met 8R-AWN 969 | -10/Exiles | Met EX-HEX 1038 | -10/Exiles | Met EX-BIN 1067 | -10/Exiles | Aligned with FarCom system 1070 | -10/Exiles | Given EX-Vault access code 1125 | -10/Exiles | Opened EX-Vault 1170 | -10/Exiles | Found PSU Rigger 1222 | -10/Exiles | Warned to stay clear of 0b10 Research branches 1294 | -10/Exiles | Met EX-DEC 1311 | -10/Exiles | Learned location of Zion (-7) 1385 | -10/Exiles | Discovered new exit (range 10) 1406 | -10/Exiles | Left Exiles lab with PSU Rigger 1406 | -10/Exiles | Entered Mines 1407 | -9/Mines | Assembled infested the area 1412 | -9/Mines | Assisted by a Guerilla fighting off Assembled 1725 | -9/Mines | Discovered new exit (range 7) 1730 | -9/Mines | Discovered new exit (range 15) 1744 | -9/Mines | Entered Materials 1744 | -8/Materials | Evolved 4 slots: Propulsion x2, Utility x2 2386 | -8/Materials | Lost 3 parts (1u2w) 2894 | -8/Materials | Discovered new exit (range 16) 3871 | -8/Materials | Identified exit to Garrison 3981 | -8/Materials | Entered Garrison 3981 | -8/Garrison | Accompanied by 1 ally 4039 | -8/Garrison | Installed Relay Interface Framework 4154 | -8/Garrison | Garrison Relay disabled 4348 | -8/Garrison | Triggered checkpoint 4458 | -8/Garrison | Triggered checkpoint 4801 | -8/Garrison | Discovered new exit (range 13) 4992 | -8/Garrison | Triggered checkpoint 5069 | -8/Garrison | Expanded RIF knowledge: Patrol Navigation 5093 | -8/Garrison | Garrison Relay disabled 5194 | -8/Garrison | Triggered checkpoint 5587 | -8/Garrison | Rescued a captive Derelict 5588 | -8/Garrison | Rescued a captive Derelict 5709 | -8/Garrison | Discovered new exit (range 10) 5952 | -8/Garrison | Triggered checkpoint 5991 | -8/Garrison | Garrison Relay disabled 6023 | -8/Garrison | Garrison Relay disabled 6066 | -8/Garrison | Triggered checkpoint 6106 | -8/Garrison | Triggered checkpoint 6442 | -8/Garrison | Triggered checkpoint 6451 | -8/Garrison | Discovered new exit (range 13) 6704 | -8/Garrison | Entered Factory 6704 | -7/Factory | Evolved 2 slots: Utility x2 7039 | -7/Factory | Discovered new exit (range 7) 7104 | -7/Factory | First assault squad dispatched 7250 | -7/Factory | Entered Storage 7650 | -7/Storage | First assault squad dispatched 7734 | -7/Storage | Self-destructed Last Messages --------------- 07684_ U-05 Engineer lays Concrete. 07686_ U-05 Engineer builds a Wall. 07686_ R-06 Scavenger collects Target Analyzer. 07689_ R-06 Scavenger collects Imp. Heat Sink. 07690_ U-05 Engineer lays Concrete. 07703_ Connecting with Terminal... >>Alert(Check) Current Alert Level: 2-S 07714_ Component Storage disabled. 07720_ Dropped Hcp. Battery. 07720_ Hrd. Heavy Armor Plating destroyed. 07721_ Extracted 250 energy. 07722_ Y-54 Guardian destroyed. 07725_ Chain reaction triggered in Imp. Deuterium Engine. 07726_ Overheating: Imp. Shield Generator damaged (-5). 07728_ Acquired Hcp. Battery. 07729_ Dropped Lrg. Battery. 07730_ Extracted 200 energy. 07734_ Lgt. Treads broken. 07734_ Overheating: Short circuit. Map ----- +----------------------------------------------------+ | """ T"#??#! !#??# "]/"???????????????????????? | | """[""#??#! !#??# "= "???????????????????????? | | """*""#??#! !#??# !!"???????????????????????? | | % #??#####??# """" #????????????????????? | | #####/###????# #??# #????????????????????? | | ??# ##############+######????????????????????? | | ??# #????????????????????? | | ??+ #????????????????????? | | ??# [ [ ##???????????????????? | | ??# ###########/##/### ##??????????????????? | | ??## ##??????# !%! #??????????????????? | | ???# #???????# ! ! #??????????????????? | | ???# #???????# #??????????????????? | | ???# #???????# [[! #??????????????????? | | ???# #???????# [!! #??????????????????? | | ???# +???????# [!! ##??????????????????? | | ???# #???????####### #### ##???????????????????? | | ???# #?s???????# ###????????????????????? | | ???+ #???????#"" r"""""C##?????????????????????? | | ???# #???????#"" """"" #??????????????????????? | | ???### #???????#"T """"" ###????????????????????? | | ?????? ????????#"" ""#????????????????????? | | ?????? ????????#"" """"" T"#????????????????????? | | ?????? ?????????## " ""#????????????????????? | | ?????? ??????????#[!" ###????????????????????? | | ?????? ?????????#*%= Y @#??????????????????????? | | ????????????????######;;;##??????????????????????? | | ??????????????????? ????????????????????????? | | ???????????????? ?????????????????????????? | | ?????????????? ?????????????????????????? | | ???????????? ########+??????????????????????????? | | ?????????????????????????????????????????????????? | | ?????????????????????????????????????????????????? | | ?????????????????????????????????????????????????? | | ?????????????????????????????????????????????????? | | ?????????????????????????????????????????????????? | | ?????????????????????????????????????????????????? | | ?????????????????????????????????????????????????? | | ?????????????????????????????????????????????????? | | ?????????????????????????????????????????????????? | | ?????????????????????????????????????????????????? | | ?????????????????????????????????????????????????? | | ?????????????????????????????????????????????????? | | ?????????????????????????????????????????????????? | | ?????????????????????????????????????????????????? | | ?????????????????????????????????????????????????? | | ?????????????????????????????????????????????????? | | | | | | | +----------------------------------------------------+ Best States ------------- Heat Dissipation 45 Energy Generation 16 Energy Capacity 290 Matter Stores 300 Matter Capacity 300 Sight Range 16 Terrain Scan Density 10 Armor Coverage 600 Evasion (%) 40 Recoil Reduction 4 Defensive Hacking 14 Relay Coupler Types 1 Relay Coupler Value 31 Item Schematics ----------------- None Robot Schematics ------------------ None Fabricated ------------ Nothing Alien Tech Used ----------------- None Achievements -------------- None Challenges ------------ None Game ------ Seed WeldingPlasmaDoublenader Manual? 0 Play Time 01:00:59 Cumulative 127.5 hours Start 2023.03.07 @ 01:00:07 End 2023.03.07 @ 02:11:25 Sessions 1 Manual Loads 0 Difficulty Rogue Special Mode None Game No. 83 Rogue 83 Adventurer 0 Explorer 0 Win Type - Total 1 Types 0/0/1/0/0/0/0/0/0 Lore% 53 Gallery% 67 Achievement% 55 Wizard Run 0 Options --------- ASCII 1 Keyboard 1 Movement Numpad Keybinds 0 Fullscreen 0 Font 16/Terminus Map View 76x50 Tactical HUD 1 Map Filters NONE Filters NONE Steam 1 RUN: e79825a3-3cd9-46d1-ad2f-c1dc8ec728d6